Cogmind - Beta 13 @@@ ROGUE MODE // 2024.07.23 @ 11:32:05 Player: trisiak Result: Destroyed by L-41 Fighter with Axe Performance ------------- Evolutions (4) 2000 Regions Visited (13) 2600 Robots Destroyed (201) 1005 Value Destroyed (6813) 6813 Prototype IDs (36) 720 Alien Tech Used (0) 0 Bonus (6877) 6877 TOTAL SCORE: 20015 Bonus ------- High Alert Combat Kills 1303 Follower Combat Kills 3143 Entered Garrisons 800 Used RIF Installer 2000 Aligned with FarCom 300 Friendly Fire -669 Cogmind --------- Core Integrity 0/850 Matter 20/300 Energy 100/100 System Corruption 23% Temperature Cool (0) Movement Core (2400) Ox47 Location -6/Factory Parts ------- > --- POWER (1) -------- (None) > --- PROPULSION (3) --- (None) > --- UTILITY (8) ------ Cargo Storage Unit Relay Coupler [Grunt] (6) Relay Coupler [Duelist] (3) > --- WEAPON (3) ------- Power Sword > --- INVENTORY (30) --- Cooled Deuterium Engine Cooled Deuterium Engine Carbon-fiber Leg Compact Battery (200) Large Matter Pod (0) Structural Scanner Improved Utility Shielding Relay Coupler [NC] (31) Relay Coupler [NC] (31) Relay Coupler [Swarmer] (47) Relay Coupler [Swarmer] (31) Relay Coupler [Cutter] (30) Relay Coupler [Duelist] (31) Relay Coupler [Sentry] (26) Relay Coupler [Demolisher] (25) Relay Coupler [Specialist] (20) Relay Coupler [Hunter] (23) Helical Railgun Helical Railgun Plasma Cutter Peak State ------------ > --- POWER ------------ Cooled Deuterium Engine > --- PROPULSION ------- Flexi-carbon Leg Myomer Leg Enhanced Biometal Leg > --- UTILITY ---------- Cargo Storage Unit Cloak of Protection Hacking Suite Improved Hacking Suite Relay Coupler [Grunt] Relay Coupler [Brawler] Relay Coupler [Sentry] > --- WEAPON ----------- Helical Railgun Improved Remote Datajack Power Sword > --- INVENTORY -------- Cooled Deuterium Engine Neutrino Core Carbon-fiber Leg Compact Battery Large Matter Pod Structural Scanner Improved Utility Shielding Medium Reactive Plating Remote Shield Remote Shield Relay Coupler [NC] Relay Coupler [NC] Relay Coupler [NC] Relay Coupler [Swarmer] Relay Coupler [Swarmer] Relay Coupler [Cutter] Relay Coupler [Duelist] Relay Coupler [Duelist] Relay Coupler [Sentry] Relay Coupler [Demolisher] Relay Coupler [Specialist] Relay Coupler [Hunter] HERF Cannon Helical Railgun Antimatter Cannon Rocket Launcher Remote Datajack Plasma Cutter [Rating: 84] Favorites ----------- Power Cooled Ion Engine Engine Cooled Ion Engine Power Core Micro Nuclear Core Reactor Hybrid Antimatter Reactor Propulsion Light Treads Treads Light Treads Leg Enhanced Biometal Leg Wheel Armored Wheel Utility Huge Storage Unit Device Structural Scanner Storage Huge Storage Unit Processor Advanced Targeting Computer Hackware Relay Coupler [Grunt] Protection Medium Reactive Plating Weapon Heavy Particle Cannon Energy Gun Beamcaster Energy Cannon Heavy Particle Cannon Ballistic Gun Assault Rifle Ballistic Cannon Heavy Mass Driver Launcher Missile Launcher Special Weapon Improved Remote Datajack Slashing Weapon Axe Special Melee Weapon Improved Datajack Build | -11 -10 -10 -10 -9 -8 -8 -8 -8 -7 -7 -6 -6 -6 ------- Run | Yrd Mat Min Exi Min Mat Gar Mat Gar Fac Gar Fac Gar Fac Slots Evolved 8 | . . . . . 4 . . . 2 . 2 . . Power . | . . . . . . . . . . . . . . Propulsion 1 | . . . . . 1 . . . . . . . . Utility 6 | . . . . . 3 . . . 2 . 1 . . Weapon 1 | . . . . . . . . . . . 1 . . Parts Attached 464 | 2 18 11 . 17 67 35 28 41 48 43 65 60 29 Power 18 | . 2 . . . 2 3 1 4 1 . 1 3 1 Engine 13 | . 2 . . . 2 2 1 2 1 . 1 2 . Core 4 | . . . . . . 1 . 2 . . . . 1 Reactor 1 | . . . . . . . . . . . . 1 . Propulsion 48 | 2 4 2 . 2 10 4 1 2 1 2 6 12 . Treads 31 | 2 4 2 . 2 9 2 1 2 . 2 1 4 . Leg 5 | . . . . . . . . . . . . 5 . Wheel 12 | . . . . . 1 2 . . 1 . 5 3 . Hover . | . . . . . . . . . . . . . . Flight . | . . . . . . . . . . . . . . Utility 223 | . 9 7 . 5 34 18 15 17 31 19 28 25 15 Device 116 | . 3 5 . 2 25 13 10 5 12 5 18 11 7 Storage 4 | . 1 . . . 1 . . . . 1 1 . . Processor 5 | . . . . . 2 . . . . . . 3 . Hackware 54 | . . . . . . 3 3 8 12 9 6 7 6 Protection 44 | . 5 2 . 3 6 2 2 4 7 4 3 4 2 Artifact . | . . . . . . . . . . . . . . Weapon 175 | . 3 2 . 10 21 10 11 18 15 22 30 20 13 Energy Gun 3 | . . . . 2 . . . 1 . . . . . Energy Cannon 39 | . . . . 1 11 5 6 7 4 3 . 1 1 Ballistic Gun 10 | . 3 1 . 1 1 . . . . . . 2 2 Ballistic Cannon 16 | . . 1 . 1 . . . . 4 5 1 2 2 Launcher 14 | . . . . 3 5 1 2 . . . . 1 2 Special Weapon 56 | . . . . 2 . 1 3 9 3 7 15 12 4 Impact Weapon . | . . . . . . . . . . . . . . Slashing Weapon 32 | . . . . . 3 . . 1 4 7 13 2 2 Piercing Weapon . | . . . . . . . . . . . . . . Special Melee Weapon 5 | . . . . . 1 3 . . . . 1 . . Unidentified Prototypes 8 | . 1 . . . 1 . . . 1 . 1 4 . Corrupted Parts 5 | . . . . . . . . . . . . 5 . System Corruption 17 | . . . . . . . . . . . . 17 . Parts Lost 50 | . . . . 5 10 2 1 . 6 3 1 9 13 Power 6 | . . . . . 1 1 1 . 1 . . 1 1 Propulsion 12 | . . . . 2 2 1 . . 2 1 . 3 1 Utility 19 | . . . . . 5 . . . 3 1 . 4 6 Weapon 13 | . . . . 3 2 . . . . 1 1 1 5 Highest Loss Streak 8 | . . . . 2 2 1 1 . 4 1 1 8 6 To Critical Strikes 3 | . . . . . . . . . 1 1 . 1 . Average Slot Usage (%) 91 | . 98 100 100 99 94 89 89 98 88 86 84 88 85 Engine 6 | . 13 14 14 14 9 7 2 2 . 7 6 4 4 Core 1 | . . . . . . 1 6 6 4 . . . 1 Treads 13 | . 27 28 28 27 26 20 9 9 3 3 6 3 . Leg 1 | . . . . . . . . . . . . 9 16 Wheel 7 | . . . . . . 6 18 18 10 7 10 6 . Device 9 | . 4 12 14 9 16 8 12 13 10 3 7 5 3 Storage 8 | . 14 14 14 14 9 9 9 9 7 7 6 6 6 Processor 1 | . . . . . 6 8 . . . . . . . Hackware 15 | . . . . . . 1 5 16 28 34 30 26 30 Protection 5 | . 9 1 . 4 8 8 9 4 5 6 1 5 2 Energy Cannon 5 | . . . . 6 13 15 16 5 5 1 . . . Ballistic Gun 4 | . 27 28 28 6 . . . . . . . 3 3 Ballistic Cannon 1 | . . . . . . . . . 1 4 5 6 . Special Weapon 3 | . . . . 2 . 1 1 11 4 3 2 4 5 Slashing Weapon 1 | . . . . . 2 . . . 2 4 3 . 5 Naked Turns . | . . . . . . . . . . . . . . Heaviest Build 205 | 11 55 55 53 64 117 121 129 141 131 129 203 205 197 Greatest Support 75 | 40 46 46 46 46 68 63 24 24 40 40 32 75 75 Greatest Overweight (x) 65 | . 2 1 1 1 1 5 5 5 10 9 11 65 47 Average Overweight (x) 3 | . . 1 1 1 . 2 4 3 7 3 5 4 2 Largest Inventory Capacity 30 | 8 20 20 20 20 25 25 25 25 25 25 30 30 30 Average Capacity 24 | 8 13 20 20 20 24 25 25 25 25 25 29 30 30 Most Carried 30 | 8 10 20 20 20 25 25 25 25 25 25 30 30 30 Average Carried 23 | 7 8 16 19 19 22 24 23 24 23 24 27 29 26 Final Capacity 30 | 8 20 20 20 20 25 25 25 25 25 25 30 30 30 Final Carried 30 | 6 10 20 20 18 25 25 20 25 24 25 29 30 20 Class Distribution -------------------- 41% | Bothacker-Mutant 25% | Mutant 11% | Trapper-Mutant 6% | Botlord-Skirmisher 5% | Bothacker-Skirmisher 4% | Botlord-Mutant Dominant Class ---------------- Mutant | -10/Materials Mutant | -10/Mines Trapper-Mutant | -10/Exiles Trapper-Mutant | -9/Mines Mutant | -8/Materials Mutant | -8/Garrison Bothacker-Mutant | -8/Materials Bothacker-Mutant | -8/Garrison Bothacker-Mutant | -7/Factory Bothacker-Mutant | -7/Garrison Bothacker-Mutant | -6/Factory Botlord-Skirmisher | -6/Garrison Botlord-Mutant | -6/Factory Resources | -11 -10 -10 -10 -9 -8 -8 -8 -8 -7 -7 -6 -6 -6 ----------- Run | Yrd Mat Min Exi Min Mat Gar Mat Gar Fac Gar Fac Gar Fac Matter Collected 10215 | 193 571 272 72 280 1268 557 366 768 1102 1364 1558 1281 563 Remotely 87 | . . . . . . . . . . . 87 . . Salvage Created 6759 | . 359 281 . 716 1576 488 597 512 455 427 718 170 460 Parts 440 | . 27 12 . 59 117 35 26 19 22 25 49 19 30 Haulers Intercepted 11 | . 1 . . . 5 . 1 . 2 . 1 . 1 Recyclers Shooed 2 | . 1 . . . . . . . . . . . 1 Parts Field Recycled . | . . . . . . . . . . . . . . Retrieved Matter . | . . . . . . . . . . . . . . Parts Self-Destructed . | . . . . . . . . . . . . . . Prevented . | . . . . . . . . . . . . . . Kills | -11 -10 -10 -10 -9 -8 -8 -8 -8 -7 -7 -6 -6 -6 ------- Run | Yrd Mat Min Exi Min Mat Gar Mat Gar Fac Gar Fac Gar Fac Combat Hostiles Destroyed 138 | . 7 4 . 22 32 17 12 6 6 12 4 5 11 Melee 4 | . . . . . 2 . . . . 1 . . 1 Guns 18 | . 7 4 . 6 . . . . . . . . 1 Cannons 70 | . . . . 4 17 12 8 5 5 11 4 2 2 AOE 43 | . . . . 12 13 4 4 . . . . 3 7 Classes Destroyed 21 | . 5 1 . 4 3 . . . 2 . . 4 2 Worker 12 | . . . . . 4 . . . 4 . 2 . 2 Builder 15 | . 1 . . 2 6 . 1 . . . 2 . 3 Tunneler 6 | . . . . 5 1 . . . . . . . . Hauler 11 | . 1 . . . 5 . 1 . 2 . 1 . 1 Recycler 4 | . . 1 . . . . . . . . 3 . . Mechanic 1 | . . . . . . . . . . . . . 1 Operator 3 | . . . . . 3 . . . . . . . . Watcher 9 | . 2 . . . 4 1 1 . . . 1 . . Swarmer 29 | . 3 . . . 12 9 2 . . 2 . 1 . Saboteur 3 | . . . . . . . . . . . . 3 . Grunt 72 | . 4 4 . 18 13 7 8 2 1 6 . . 9 Brawler 3 | . . . . . . . . . 2 1 . . . Duelist 1 | . . . . 1 . . . . . . . . . Protector 1 | . . . . . . . . . . . . . 1 Sentry 16 | . . . . 2 6 1 2 4 . 1 . . . Hunter 1 | . . . . . 1 . . . . . . . . Programmer 11 | . . . . . . . . . 3 3 4 . 1 Striker 1 | . . . . . . . . . . . . 1 . Executioner 1 | . . . . . . . . . . . . 1 . Assembled 1 | . . . . 1 . . . . . . . . . Infiltrator 1 | . . . . . . . . . . . . 1 . Best Kill Streak 11 | . 3 2 . 11 6 4 4 2 2 2 2 2 6 Combat Bots Only 8 | . 3 2 . 8 5 4 4 2 2 2 1 2 5 Max Kills in Single Turn 4 | . 1 1 . 4 4 2 2 1 1 1 1 2 3 Gunslinging . | . . . . . . . . . . . . . . Exploded 3 | . . . . 2 3 2 2 . . . . 2 2 Melee 1 | . . . . . 1 . . . . 1 . . 1 Uniques/NPCs Destroyed . | . . . . . . . . . . . . . . Combat | -11 -10 -10 -10 -9 -8 -8 -8 -8 -7 -7 -6 -6 -6 -------- Run | Yrd Mat Min Exi Min Mat Gar Mat Gar Fac Gar Fac Gar Fac Hostile Shots Fired 1009 | . 42 15 . 100 159 129 44 52 86 112 31 77 162 Missed 293 | . 8 4 . 27 47 41 13 18 21 39 15 19 41 Damage Taken 11252 | . 367 178 . 1033 1611 906 403 607 1043 786 315 1701 2302 Core 1787 | . 83 11 . 112 117 46 26 132 275 109 82 284 510 Absorbed by Shields 721 | . . . . . . 23 . . . 49 8 314 327 Redirected to Shielding 26 | . . . . . . . . . . . 26 . . Ignored by Resistances 427 | . . . . . . . . 41 139 73 . 174 . Regen/Repaired (Parts) 315 | . 44 . . . 187 . . . 84 . . . . Core Remaining (%) 50 | 100 . . . 17 . . . 41 . 45 . . . Volleys Fired 919 | . 46 12 . 74 143 75 47 113 121 96 56 73 63 Largest 2 | . 2 2 . 2 2 2 2 2 2 1 1 2 1 Hottest 150 | . 40 40 . 120 150 150 130 130 122 88 75 128 40 Shots Fired 1115 | . 92 24 . 90 175 106 69 117 127 99 57 94 65 Gun 202 | . 92 24 . 43 10 . . 1 . . . 14 18 Cannon 618 | . . . . 19 151 99 49 77 68 80 18 41 16 Launcher 51 | . . . . 16 14 3 4 . . . . 4 10 Special 244 | . . . . 12 . 4 16 39 59 19 39 35 21 Kinetic 328 | . 92 24 . 32 7 . . . 11 60 18 50 34 Thermal 485 | . . . . 29 154 99 49 81 57 16 . . . Explosive 51 | . . . . 16 14 3 4 . . . . 4 10 Electromagnetic 23 | . . . . 13 . . . 1 . 4 . 5 . Robot Hit Streak 24 | . 10 9 . 10 11 17 24 22 15 8 9 8 16 Robot Miss Streak 8 | . 6 2 . 8 6 4 2 3 5 2 2 2 4 Penetration Max 1 | . . . . . . . . . . . . . 1 Secondary Targets 2 | . 2 . . . . . . . . . . . . Max Gunslinging Chain 1 | . 1 . . . . . . . . . . . . Shots Hit Robots 687 | . 46 18 . 54 104 62 40 85 77 56 51 46 48 Core Hits 296 | . 22 11 . 44 71 23 25 10 10 17 11 10 42 Critical Kills 4 | . . . . . . 1 . 1 2 . . . . Critical Parts Destroyed . | . . . . . . . . . . . . . . Critical Strikes 12 | . . . . 1 . 1 . 2 3 2 1 . 2 Burn 1 | . . . . 1 . . . . . . . . . Meltdown 3 | . . . . . . 1 . 1 1 . . . . Destroy 2 | . . . . . . . . . 2 . . . . Blast 3 | . . . . . . . . . . 2 1 . . Sever 3 | . . . . . . . . 1 . . . . 2 Melee Attacks 167 | . . . . . 15 15 . 20 23 46 37 3 8 Impact . | . . . . . . . . . . . . . . Slashing 152 | . . . . . 15 . . 20 23 46 37 3 8 Piercing . | . . . . . . . . . . . . . . Sneak Attacks 34 | . . . . . 2 15 . . 4 . 10 . 3 Combat Hostiles . | . . . . . . . . . . . . . . Follow-up Attacks . | . . . . . . . . . . . . . . Damage Inflicted 18550 | . 526 237 . 2212 3926 1406 1246 1982 910 1349 1329 989 2438 Guns 1674 | . 526 237 . 501 45 . . . . . . 24 341 Cannons 9242 | . . . . 343 2397 1147 785 935 622 1242 523 896 352 Explosions 4654 | . . . . 1344 1169 259 461 . . . . 69 1352 Melee 2940 | . . . . . 315 . . 1047 288 107 806 . 377 Ramming 16 | . . . . . . . . . . . . . 16 Kinetic 4231 | . 526 237 . 363 45 . . . 129 955 523 760 693 Thermal 6204 | . . . . 285 2397 1147 785 935 493 162 . . . Explosive 4654 | . . . . 1344 1169 259 461 . . . . 69 1352 Electromagnetic 505 | . . . . 220 . . . . . 125 . 160 . Impact . | . . . . . . . . . . . . . . Slashing 2940 | . . . . . 315 . . 1047 288 107 806 . 377 Piercing . | . . . . . . . . . . . . . . Highest Corruption 24 | . 2 2 2 2 2 3 . 1 24 24 1 20 23 Average Corruption 7 | . 2 2 2 2 2 2 . 1 14 24 1 9 20 Corruption Purged 3 | . . . . . . 3 . . . . . . . Corruption Blocked . | . . . . . . . . . . . . . . Effects 561 | . 22 18 7 17 38 56 . 17 86 114 16 116 54 Message Errors 128 | . 6 6 1 5 8 13 . 5 19 25 4 27 9 Matter Fused 146 | . 6 1 3 2 10 17 . 6 31 27 3 25 15 Heat Flow Errors 64 | . 2 4 . 3 9 3 . 1 11 10 3 12 6 Energy Discharges 69 | . 5 4 . 2 5 9 . 1 11 17 1 9 5 Parts Rejected 5 | . . . . . 1 . . . . 1 . . 3 Parts Fused 3 | . . . . . . . . . . 3 . . . Data Loss (minor) 66 | . . 1 3 2 4 5 . 2 5 10 2 24 8 Data Loss (major) 32 | . 2 . . 1 . 5 . 1 5 5 1 10 2 Misfires 17 | . . . . 1 1 . . . 1 7 1 4 2 Alerts 22 | . 1 2 . 1 . 3 . 1 3 3 1 5 2 Misdirections 4 | . . . . . . . . . . 2 . . 2 Weapon Failures 5 | . . . . . . 1 . . . 4 . . . Overload Shots . | . . . . . . . . . . . . . . Overflow Damage 850 | . . . . 61 215 25 16 133 85 18 196 10 91 Projectiles 252 | . . . . . 35 14 . 39 7 18 104 10 25 Explosions 137 | . . . . 61 48 11 16 . . . . . 1 Melee 461 | . . . . . 132 . . 94 78 . 92 . 65 Knockbacks 23 | . . . . . . . . . . 7 2 11 3 Impact . | . . . . . . . . . . . . . . Kinetic 23 | . . . . . . . . . . 7 2 11 3 Secondary . | . . . . . . . . . . . . . . Self-Inflicted Damage 329 | . . . . 63 26 . . . 140 . . 31 69 Shots 8 | . . . . 2 1 . . . 2 . . 1 2 Rammed 1 | . . . . 1 . . . . . . . . . Targets Rammed 6 | . . . . 1 . . . . . . . . 5 Kicked 5 | . . . . . . . . . . . . . 5 Crushed . | . . . . . . . . . . . . . . Highest Temperature 354 | . 157 202 . 351 354 344 274 89 287 255 221 244 171 Average Temperature 68 | . 22 74 . 78 68 73 96 19 80 54 35 61 74 Received Heat Transfer 3041 | . 108 90 . 387 639 297 162 234 18 336 50 54 666 Effects 6 | . . . . 1 3 1 1 . . . . . . Shutdowns 1 | . . . . 1 . . . . . . . . . Energy Bleed 2 | . . . . . . 1 1 . . . . . . Interference 3 | . . . . . 3 . . . . . . . . Siege Activations . | . . . . . . . . . . . . . . Robots Corrupted 1 | . . . . . . . . . . 1 . . . Combat Hostiles . | . . . . . . . . . . . . . . Parts Fried 4 | . . . . . . . . . . 2 . 2 . Impact Corruptions . | . . . . . . . . . . . . . . Robots Melted 3 | . . . . . . 1 . 1 1 . . . . Combat Hostiles 3 | . . . . . . 1 . 1 1 . . . . Parts Melted 17 | . . . . . 7 6 1 2 1 . . . . Heat Transferred 8722 | . . . . 568 3579 1585 1073 1084 611 222 . . . Parts Sabotaged . | . . . . . . . . . . . . . . Parts Stolen . | . . . . . . . . . . . . . . Parts Stripped . | . . . . . . . . . . . . . . Power Chain Reactions . | . . . . . . . . . . . . . . Alert | -11 -10 -10 -10 -9 -8 -8 -8 -8 -7 -7 -6 -6 -6 ------- Run | Yrd Mat Min Exi Min Mat Gar Mat Gar Fac Gar Fac Gar Fac Peak Influence 2690 | . 152 70 . 284 513 2690 1326 2374 1271 1589 833 2386 1288 Initial 1311 | . . . . . 89 242 1311 269 1246 399 833 84 1252 Average 703 | . 54 14 . 69 216 1140 665 1095 862 829 272 1074 1079 Maximum Alert Level 5 | . . . . 1 2 5 4 5 4 4 3 5 4 Low Security (%) 25 | 100 100 100 . 92 52 . . . . . 41 8 . Level 1 11 | . . . . 7 31 9 3 10 . 2 39 7 . Level 2 20 | . . . . . 16 36 64 24 18 47 17 10 . Level 3 20 | . . . . . . 15 25 27 58 28 1 30 51 Level 4 10 | . . . . . . 7 7 11 23 21 . 17 48 Level 5 10 | . . . . . . 31 . 25 . . . 24 . High Security . | . . . . . . . . . . . . . . Max Security . | . . . . . . . . . . . . . . Squads Dispatched 39 | . . . . 1 3 . 3 . 20 . 6 . 6 Investigation 12 | . . . . . 1 . 1 . 8 . 1 . 1 Extermination 9 | . . . . . . . . . 5 . 3 . 1 Reinforcement 10 | . . . . 1 2 . 1 . 4 . 1 . 1 Assault 7 | . . . . . . . 1 . 3 . . . 3 Garrison 1 | . . . . . . . . . . . 1 . . Intercept . | . . . . . . . . . . . . . . Searches Triggered . | . . . . . . . . . . . . . . Construction Impeded 2 | . . . . 1 1 . . . . . . . . Haulers Reinforced 3 | . . . . . . . . . 2 . . . 1 Active Scanning Responses . | . . . . . . . . . . . . . . Cargo Convoy Interrupts . | . . . . . . . . . . . . . . Alert ID Control Effect 8 | . . . . . . . . . . . . 6 2 Stealth | -11 -10 -10 -10 -9 -8 -8 -8 -8 -7 -7 -6 -6 -6 --------- Run | Yrd Mat Min Exi Min Mat Gar Mat Gar Fac Gar Fac Gar Fac Distress Signals 11 | . 1 . . 1 2 . 2 . 1 . 4 . . Communications Jammed 58 | . . . . . . . 6 . 5 . 42 . 5 Distress Signals 57 | . . . . . . . 6 . 5 . 42 . 4 Times Spotted 320 | . 17 6 . 21 46 28 28 25 47 27 25 24 26 Peak Tracking Total 7 | . 3 2 . 3 6 4 7 3 6 4 3 4 5 Tactical Retreats 14 | . . . . 1 2 5 1 1 1 1 . 1 1 Traps | -11 -10 -10 -10 -9 -8 -8 -8 -8 -7 -7 -6 -6 -6 ------- Run | Yrd Mat Min Exi Min Mat Gar Mat Gar Fac Gar Fac Gar Fac Traps Triggered 39 | . 4 1 . . . 6 . 10 4 6 1 7 . Indirectly . | . . . . . . . . . . . . . . Trap Hack Attempts . | . . . . . . . . . . . . . . Triggered . | . . . . . . . . . . . . . . Disarmed . | . . . . . . . . . . . . . . Reprogrammed . | . . . . . . . . . . . . . . Reused 6 | . . . . . 2 4 . . . . . . . Traps Extracted 9 | . . 7 . . . 2 . . . . . . . Installed 12 | . . 2 . . 3 7 . . . . . . . Triggered 8 | . . . . . 2 4 . . 2 . . . . Most Traps Carried 8 | . . 8 8 8 8 5 . . . . . . . Machines | -11 -10 -10 -10 -9 -8 -8 -8 -8 -7 -7 -6 -6 -6 ---------- Run | Yrd Mat Min Exi Min Mat Gar Mat Gar Fac Gar Fac Gar Fac Machines Disabled 22 | . . 1 . 1 1 6 1 . 7 1 1 1 2 Max in Single Turn 4 | . . 1 . 1 1 1 1 . 4 1 1 . 2 Garrison Access 1 | . . . . . . . . . . . 1 . . Garrison Relay 17 | . . . . . . 4 . 5 . 4 . 4 . Phase Generator 1 | . . . . . . . . 1 . . . . . Machines Repaired . | . . . . . . . . . . . . . . Machines Dismantled 15 | . . . . . . . . 6 . 4 1 4 . Machines Sabotaged . | . . . . . . . . . . . . . . Overloaded Fab Kills . | . . . . . . . . . . . . . . Hacking | -11 -10 -10 -10 -9 -8 -8 -8 -8 -7 -7 -6 -6 -6 --------- Run | Yrd Mat Min Exi Min Mat Gar Mat Gar Fac Gar Fac Gar Fac Machines Accessed 63 | . 9 1 1 . 9 3 6 3 14 2 11 2 2 Terminals 44 | . 7 . . . 4 3 5 3 10 2 6 2 2 Fabricators 5 | . . . . . . . . . 3 . 2 . . Repair Stations 3 | . 1 . . . 2 . . . . . . . . Recycling Units 2 | . 1 . . . . . . . . . 1 . . Scanalyzers 2 | . . . . . 2 . . . . . . . . Garrison Access 5 | . . . . . 1 . 1 . 1 . 2 . . Total Hacks 158 | . 29 1 1 . 20 5 16 7 35 7 30 3 4 Successful 67 | . 16 1 1 . 11 2 5 2 10 1 16 1 1 Failed 91 | . 13 . . . 9 3 11 5 25 6 14 2 3 Catastrophic 25 | . 1 . . . 3 1 3 . 10 1 3 2 1 Database Lockouts . | . . . . . . . . . . . . . . Manual 76 | . 15 . 1 . 6 . 15 . 19 . 18 . 2 Terminals 117 | . 25 . . . 8 5 15 7 26 7 17 3 4 Fabricators 12 | . . . . . . . . . 8 . 4 . . Repair Stations 7 | . 3 . . . 4 . . . . . . . . Recycling Units 6 | . 1 . . . . . . . . . 5 . . Scanalyzers 7 | . . . . . 7 . . . . . . . . Garrison Access 7 | . . . . . 1 . 1 . 1 . 4 . . Terminal Hacks 35 | . 12 1 1 . 2 2 3 2 3 1 6 1 1 Record 3 | . . . . . . . . . . . 3 . . Part Schematic 2 | . 2 . . . . . . . . . . . . Robot Analysis 3 | . 3 . . . . . . . . . . . . Prototype ID Bank 1 | . 1 . . . . . . . . . . . . Open Door 4 | . . 1 . . . 1 . 1 . . . 1 . Emergency Access Points 1 | . . . . . . . . 1 . . . . . Terminal Index 1 | . . . . . . . . . . . . . 1 Scanalyzer Index 1 | . . . . . . . . . . . 1 . . Unreport Threat 8 | . . . . . 2 . 3 . 2 . 1 . . Locate Traps 2 | . 2 . . . . . . . . . . . . Hauler Manifests 1 | . 1 . . . . . . . . . . . . Zone Layout 5 | . 3 . . . . . . . 1 . 1 . . Garrison Registry 2 | . . . . . . 1 . . . 1 . . . Derelict Proto ID Bank 1 | . . . 1 . . . . . . . . . . Fabricator Hacks 6 | . . . . . . . . . 3 . 3 . . Load Schematic 4 | . . . . . . . . . 2 . 2 . . Build 2 | . . . . . . . . . 1 . 1 . . Repair Station Hacks 4 | . 2 . . . 2 . . . . . . . . Scan Component 2 | . 1 . . . 1 . . . . . . . . Repair 2 | . 1 . . . 1 . . . . . . . . Recycling Unit Hacks . | . . . . . . . . . . . . . . Scanalyzer 5 | . . . . . 5 . . . . . . . . Insert Component 2 | . . . . . 2 . . . . . . . . Analyze 3 | . . . . . 3 . . . . . . . . Garrison Access Hacks 7 | . . . . . 1 . 1 . 1 . 4 . . Unlock Access 4 | . . . . . 1 . 1 . 1 . 1 . . Seal Access 1 | . . . . . . . . . . . 1 . . Coupler Status 2 | . . . . . . . . . . . 2 . . Unauthorized Hacks 10 | . 2 . . . 1 . 1 . 3 . 3 . . Terminals 8 | . 2 . . . 1 . 1 . 3 . 1 . . Assimilate 1 | . . . . . . . . . 1 . . . . Botnet 7 | . 2 . . . 1 . 1 . 2 . 1 . . Fabricators . | . . . . . . . . . . . . . . Repair Stations . | . . . . . . . . . . . . . . Recycling Units 2 | . . . . . . . . . . . 2 . . Reject 1 | . . . . . . . . . . . 1 . . Mask 1 | . . . . . . . . . . . 1 . . Scanalyzers . | . . . . . . . . . . . . . . Garrison Access . | . . . . . . . . . . . . . . Data Cores Recovered 1 | . . . . . . . 1 . . . . . . Used . | . . . . . . . . . . . . . . Hacking Detections 57 | . 9 . . . 7 2 6 2 14 2 11 2 2 Full Trace Events 15 | . 1 . . . 1 1 . . 8 1 1 1 1 Feedback Events 3 | . . . . . . 1 . . 2 . . . . Corruption 3 | . . . . . . 1 . . 2 . . . . Feedback Blocked . | . . . . . . . . . . . . . . Robot Schematics Acquired . | . . . . . . . . . . . . . . Robots Built 3 | . . . . . . . . . 3 . . . . Authchips . | . . . . . . . . . . . . . . Time 49 | . . . . . . . . . 49 . . . . Total Robot Build Rating 6 | . . . . . . . . . 6 . . . . Part Schematics Acquired 3 | . 2 . . . 1 . . . . . . . . Parts Built 1 | . . . . . . . . . . . 1 . . Authchips . | . . . . . . . . . . . . . . Time 51 | . . . . . . . . . . . 51 . . Total Part Build Rating 1 | . . . . . . . . . . . 1 . . Parts Repaired 2 | . 1 . . . 1 . . . . . . . . Time 51 | . 13 . . . 38 . . . . . . . . Parts Recycled . | . . . . . . . . . . . . . . Recycled Matter . | . . . . . . . . . . . . . . Retrieved Matter . | . . . . . . . . . . . . . . Retrieved Components . | . . . . . . . . . . . . . . Parts Scanalyzed 2 | . . . . . 2 . . . . . . . . Part Schematics Acquired 1 | . . . . . 1 . . . . . . . . Parts Damaged 1 | . . . . . 1 . . . . . . . . Bothacking | -11 -10 -10 -10 -9 -8 -8 -8 -8 -7 -7 -6 -6 -6 ------------ Run | Yrd Mat Min Exi Min Mat Gar Mat Gar Fac Gar Fac Gar Fac Used RIF Installer 4 | . . . . . . 1 . 1 . 1 . 1 . Signal Jammer 1 | . . . . . . . . 1 . . . . . Robot Detection 1 | . . . . . . . . . . 1 . . . Alert ID Control 1 | . . . . . . . . . . . . 1 . Robots Hacked 95 | . . . . . . 2 5 12 25 9 19 15 8 Non-combat 17 | . . . . . . . 2 . 6 . 8 . 1 Combat 78 | . . . . . . 2 3 12 19 9 11 15 7 Robot Hacks Applied 127 | . . . . . . 2 11 13 39 10 24 16 12 parse_system 9 | . . . . . . . . . 6 . 1 2 . no_distress 3 | . . . . . . . . . 1 . 1 . 1 map_walls 1 | . . . . . . . . . . . 1 . . map_earth 1 | . . . . . . . . . 1 . . . . find_fabricator 2 | . . . . . . . . . 2 . . . . drop_inventory 2 | . . . . . . . . . . . 2 . . recall_reinforcements 2 | . . . . . . . . . 2 . . . . locate_stockpiles 1 | . . . . . . . . . 1 . . . . purge_threat 14 | . . . . . . . 4 . 5 . 3 . 2 find_terminals 1 | . . . . . . . 1 . . . . . . locate_traps 1 | . . . . . . . 1 . . . . . . reprogram_traps 1 | . . . . . . . . . 1 . . . . block_reporting 1 | . . . . . . . 1 . . . . . . map_route 3 | . . . . . . . . . 1 . 2 . . mark_security 1 | . . . . . . . . . . . 1 . . find_shortcuts 2 | . . . . . . . . . . 1 . 1 . find_garrison 2 | . . . . . . . 1 . . . 1 . . scatter_targeting 5 | . . . . . . . . 2 . 2 1 . . spike_heat 1 | . . . . . . . . . . . . . 1 overload_power 3 | . . . . . . . . . . . . 1 2 amplify_resonance 3 | . . . . . . . 1 . 1 1 . . . disable_weapons 1 | . . . . . . . . . . . . 1 . overwrite_iff 15 | . . . . . . . 1 4 3 1 1 3 2 streamctrl_high 2 | . . . . . . . 1 . 1 . . . . formatsys_low 4 | . . . . . . . . . 2 . 2 . . formatsys_high 46 | . . . . . . 2 . 7 12 5 8 8 4 Relay Couplers Released 74 | . . . . . . 17 . 18 . 16 6 17 . Machine Destruction 70 | . . . . . . 17 . 18 . 16 2 17 . Programmers 4 | . . . . . . . . . . . 4 . . Attached 48 | . . . . . . 3 2 8 10 9 6 7 3 Fabnet Peak Effective % . | . . . . . . . . . . . . . . Robots Rewired 25 | . . . . . . 8 . 11 . . . 6 . Allies Hacked 2 | . . . . . . . . . 1 . . . 1 Hacks Repelled . | . . . . . . . . . . . . . . Allies | -11 -10 -10 -10 -9 -8 -8 -8 -8 -7 -7 -6 -6 -6 -------- Run | Yrd Mat Min Exi Min Mat Gar Mat Gar Fac Gar Fac Gar Fac Total Allies 101 | . . 4 . 2 . 10 2 21 21 6 11 19 5 Largest Group 12 | . . 3 3 5 . 3 2 11 12 4 7 9 3 Highest-Rated Group 387 | . . 40 40 89 . 59 32 209 225 108 176 387 47 Highest-Rated Ally 95 | . . 31 16 31 . 31 16 39 39 32 47 95 47 Total Orders 131 | . . . . . . 7 3 31 20 19 27 22 2 STAY 67 | . . . . . . 4 1 15 10 10 15 11 1 ROAM 2 | . . . . . . . 1 . . . . 1 . FOLLOW 60 | . . . . . . 3 1 16 9 9 12 9 1 AID 2 | . . . . . . . . . 1 . . 1 . Ally Attacks 562 | . . . . . . 51 29 110 137 27 67 106 35 Total Damage 11888 | . . . . . . 722 360 1657 2676 974 1983 2795 721 Kills 130 | . . . . . . 11 3 21 35 12 17 28 3 Allies Corrupted 1 | . . . . . . . . . . 1 . . . Allies Melted . | . . . . . . . . . . . . . . Intel | -11 -10 -10 -10 -9 -8 -8 -8 -8 -7 -7 -6 -6 -6 ------- Run | Yrd Mat Min Exi Min Mat Gar Mat Gar Fac Gar Fac Gar Fac Robot Analysis Total 3 | . 3 . . . . . . . . . . . . Derelict Logs Recovered 2 | . . 1 . 1 . . . . . . . . . Drone Launches . | . . . . . . . . . . . . . . Drone Recoveries . | . . . . . . . . . . . . . . Exploration | -11 -10 -10 -10 -9 -8 -8 -8 -8 -7 -7 -6 -6 -6 ------------- Run | Yrd Mat Min Exi Min Mat Gar Mat Gar Fac Gar Fac Gar Fac Turns Passed 32017 | 5 1572 1695 696 1274 3736 3946 1345 3822 3274 2292 2835 4377 1148 Spaces Moved 13422 | 1 688 673 290 416 1357 1534 679 2072 1358 1068 1348 1626 312 Core 4 | . . . . . . . . . . . . 3 1 Treads 4240 | 1 688 673 290 416 1357 815 . . . . . . . Legs 1079 | . . . . . . . . . . . . 768 311 Wheels 8099 | . . . . . . 719 679 2072 1358 1068 1348 855 . Hover . | . . . . . . . . . . . . . . Flight . | . . . . . . . . . . . . . . Fastest Speed 125 | 160 160 240 240 240 155 135 150 135 125 125 160 175 253 Average Speed 198 | 160 194 240 240 240 229 198 161 149 202 157 177 234 303 Slowest Speed 3300 | 160 320 240 240 240 240 320 165 165 240 225 265 3300 2400 Overloaded Moves . | . . . . . . . . . . . . . . Propulsion Burnouts . | . . . . . . . . . . . . . . Robots Hopped . | . . . . . . . . . . . . . . Cave-ins Triggered 1 | . . . . . . . . . . . . 1 . Exploration Rate (%) 63 | 2 75 95 70 76 93 92 44 98 39 88 23 89 6 Regions Visited 13 Branch Regions 3 Pre-discovered Areas 1 | . . . . 1 . . . . . . . . . Known Exits Taken 4 | . . . . . 1 . 1 . 1 . 1 . . Unknown Exits Taken 5 | 1 1 1 1 1 . . . . . . . . . Scrap Searched 2 | . . 1 . 1 . . . . . . . . . Spaces Dug 143 | . . . . 9 28 8 . . 19 10 26 42 1 Terrain Destroyed 663 | . . . . 169 172 8 29 . 62 25 34 62 102 Melee 54 | . . . . . 6 . . . 15 9 23 . 1 Projectile 114 | . . . . . 31 . 17 . 9 16 11 21 9 AOE 495 | . . . . 169 135 8 12 . 38 . . 41 92 Terrain Rammed . | . . . . . . . . . . . . . . Walls Destroyed . | . . . . . . . . . . . . . . Machines Disabled . | . . . . . . . . . . . . . . Actions | -11 -10 -10 -10 -9 -8 -8 -8 -8 -7 -7 -6 -6 -6 --------- Run | Yrd Mat Min Exi Min Mat Gar Mat Gar Fac Gar Fac Gar Fac Total 17479 | 6 841 731 291 570 1786 2341 866 2621 1752 1489 1659 2083 443 Wait 1715 | . 67 8 . 59 130 582 93 198 178 136 84 162 18 Move 13410 | . 687 672 289 415 1356 1533 679 2071 1357 1067 1347 1625 312 Hop . | . . . . . . . . . . . . . . Pick Up 210 | 1 10 17 1 3 28 24 6 27 13 25 25 29 1 Fast Attach 81 | . 11 1 . 1 18 5 2 6 5 9 8 12 3 Attach 95 | 2 . 2 . 5 14 7 6 3 11 5 12 16 12 Detach 58 | 2 1 1 . . 9 4 4 4 6 4 9 8 6 Swap 290 | . 7 8 . 11 36 23 20 32 32 29 46 32 14 Drop 194 | 1 12 8 1 1 34 27 9 27 6 23 20 24 1 Fire 919 | . 46 12 . 74 143 75 47 113 121 96 56 73 63 Melee 167 | . . . . . 15 15 . 20 23 46 37 3 8 Ram . | . . . . . . . . . . . . . . Kick 5 | . . . . . . . . . . . . . 5 Crush 1 | . . . . 1 . . . . . . . . . Escape Stasis 169 | . . . . . . 32 . 56 . 36 . 45 . Rewire 84 | . . . . . . 7 . 36 . . . 41 . Trap 12 | . . 2 . . 3 7 . . . . . . . Miscellaneous 69 | . . . . . . . . 28 . 13 15 13 . Route ------- -11/Scrapyard -10/Materials (discovered 5 exits: [*Mat x2] / *Min x2 / [*Sub]) -10/Mines (discovered 4 exits: [*Mat x2] / *Exi / [*Sub]) -10/Exiles -9/Mines -8/Materials (discovered 3 exits: *Fac x2 / Gar) -8/Garrison (discovered 3 exits: *Mat x3) -8/Materials (discovered 2 exits: *Fac / Gar) -8/Garrison (discovered 3 exits: *Fac x3) -7/Factory (discovered 4 exits: *Sto x2 / [Low] / Gar) -7/Garrison (discovered 3 exits: *Fac x3) -6/Factory (discovered 2 exits: [*Fac] / Gar) -6/Garrison (discovered 4 exits: [*Fac x3] / *Fac) -6/Factory (discovered 1 exit: [*Fac]) History --------- Turn | Location | Event 6 | -11/Scrapyard | Discovered new exit (range 0) 6 | -11/Scrapyard | Entered Materials 174 | -10/Materials | Discovered new exit (range 16) 306 | -10/Materials | Build established: Mutant 416 | -10/Materials | Discovered new exit (range 14) 628 | -10/Materials | Repaired Lgt. Armor Plating 900 | -10/Materials | Discovered new exit (range 10) 1134 | -10/Materials | Discovered new exit (range 13) 1391 | -10/Materials | Discovered new exit (range 13) 1578 | -10/Materials | Entered Mines 1585 | -10/Mines | Met a Derelict bent on vengeance 2089 | -10/Mines | Received a Mining Laser from a helpful Derelict 2162 | -10/Mines | Assembled infested the area 2331 | -10/Mines | Found a hidden stash of uninstalled traps 2364 | -10/Mines | Discovered new exit (range 10) 2391 | -10/Mines | Met a Derelict who couldn't figure out how to use a Trap Extractor 2637 | -10/Mines | Discovered new exit (range 6) 2864 | -10/Mines | Discovered new exit (range 10) 2871 | -10/Mines | Received a Rocket Launcher from a helpful Derelict 3165 | -10/Mines | Assisted by bots powering up and referring to "LRC-V3" 3261 | -10/Mines | Deemed a non-threat by the Exiles lab entrance 3261 | -10/Mines | Discovered new exit (range 5) 3273 | -10/Mines | Entered Exiles 3273 | -10/Exiles | Accompanied by 3 allies 3331 | -10/Exiles | Met 8R-AWN 3372 | -10/Exiles | Met EX-HEX 3405 | -10/Exiles | Build established: Trapper-Mutant 3439 | -10/Exiles | Met EX-BIN 3473 | -10/Exiles | Aligned with FarCom system 3475 | -10/Exiles | Given EX-Vault access code 3533 | -10/Exiles | Opened EX-Vault 3550 | -10/Exiles | Found Cloak of Protection 3601 | -10/Exiles | Warned to stay clear of 0b10 Research branches 3673 | -10/Exiles | Met EX-DEC 3947 | -10/Exiles | Discovered new exit (range 10) 3969 | -10/Exiles | Left Exiles lab with Cloak of Protection 3969 | -10/Exiles | Entered Mines 3969 | -9/Mines | Accompanied by 3 allies 4033 | -9/Mines | Excavation squad dispatched 4033 | -9/Mines | A large section of the Mines collapsed 4064 | -9/Mines | Lost 5 allies 4283 | -9/Mines | Excavation squad dispatched 4446 | -9/Mines | Core integrity fell below 50% 4533 | -9/Mines | Excavation squad dispatched 4783 | -9/Mines | Excavation squad dispatched 5028 | -9/Mines | Learned location of Zion (-7) 5033 | -9/Mines | Excavation squad dispatched 5136 | -9/Mines | Destroyed 8 combat bots 5208 | -9/Mines | Core integrity fell below 20% 5219 | -9/Mines | Discovered new exit (range 10) 5243 | -9/Mines | Entered Materials 5243 | -8/Materials | Evolved 4 slots: Propulsion x1, Utility x3 6259 | -8/Materials | Discovered new exit (range 5) 7117 | -8/Materials | Identified exit to Garrison 7282 | -8/Materials | Build established: Mutant 8397 | -8/Materials | Repaired Hvy. Armor Plating 8775 | -8/Materials | Discovered new exit (range 16) 8979 | -8/Materials | Entered Garrison 9153 | -8/Garrison | Triggered checkpoint 9282 | -8/Garrison | Garrison Relay disabled 10461 | -8/Garrison | Triggered checkpoint 10669 | -8/Garrison | Discovered new exit (range 13) 10781 | -8/Garrison | Triggered checkpoint 11030 | -8/Garrison | Triggered checkpoint 11134 | -8/Garrison | Discovered new exit (range 83) 11134 | -8/Garrison | Discovered new exit (range 64) 11134 | -8/Garrison | Discovered new exit (range 39) 11236 | -8/Garrison | Lost 3 allies 11436 | -8/Garrison | Garrison Relay disabled 11455 | -8/Garrison | Triggered checkpoint 11520 | -8/Garrison | Build established: Scavenger-Mutant 11664 | -8/Garrison | Triggered checkpoint 11817 | -8/Garrison | Triggered checkpoint 11865 | -8/Garrison | Installed Relay Interface Framework 11868 | -8/Garrison | Build established: Mutant 12134 | -8/Garrison | Spotted B-75 Beast 12249 | -8/Garrison | Garrison Relay disabled 12445 | -8/Garrison | Triggered checkpoint 12502 | -8/Garrison | Garrison Relay disabled 12554 | -8/Garrison | Build established: Bothacker-Mutant 12575 | -8/Garrison | Triggered checkpoint 12925 | -8/Garrison | Entered Materials 12925 | -8/Materials | Accompanied by 2 allies 13325 | -8/Materials | First assault squad dispatched 13578 | -8/Materials | Discovered new exit (range 11) 14268 | -8/Materials | Identified exit to Garrison 14270 | -8/Materials | Entered Garrison 14342 | -8/Garrison | Triggered checkpoint 14504 | -8/Garrison | Garrison Relay disabled 14562 | -8/Garrison | Triggered checkpoint 14656 | -8/Garrison | Triggered checkpoint 14710 | -8/Garrison | Triggered checkpoint 15069 | -8/Garrison | Triggered checkpoint 15168 | -8/Garrison | Triggered checkpoint 15216 | -8/Garrison | Discovered new exit (range 9) 15344 | -8/Garrison | Triggered checkpoint 15398 | -8/Garrison | Garrison Relay disabled 15547 | -8/Garrison | Discovered new exit (range 10) 15622 | -8/Garrison | Triggered checkpoint 15675 | -8/Garrison | Expanded RIF knowledge: Signal Jamming 15739 | -8/Garrison | Discovered new exit (range 9) 15779 | -8/Garrison | Garrison Relay disabled 15870 | -8/Garrison | Lost 3 allies 16087 | -8/Garrison | Garrison Relay disabled 16166 | -8/Garrison | Triggered checkpoint 16748 | -8/Garrison | Triggered checkpoint 16808 | -8/Garrison | Triggered checkpoint 16857 | -8/Garrison | Garrison Relay disabled 17235 | -8/Garrison | Phase Generator disabled 17271 | -8/Garrison | Core integrity fell below 50% 18092 | -8/Garrison | Entered Factory 18092 | -7/Factory | Accompanied by 11 allies 18092 | -7/Factory | Evolved 2 slots: Utility x2 18093 | -7/Factory | Identified exit to Storage 18492 | -7/Factory | First assault squad dispatched 18793 | -7/Factory | Discovered new exit (range 60) 18793 | -7/Factory | Discovered exit to Storage (range 94) 19035 | -7/Factory | Lost 3 allies 19617 | -7/Factory | Fabricated B-36 Bruiser? 19945 | -7/Factory | P-60 Hacker assimilated allied Guardian 4a 19954 | -7/Factory | P-60 Hacker assimilated allied Bruiser 4b 19962 | -7/Factory | System corruption reached 10% 20014 | -7/Factory | Lost 4 parts (1p1n2u) 21235 | -7/Factory | Identified exit to Garrison 21366 | -7/Factory | Entered Garrison 21366 | -7/Garrison | Accompanied by 1 ally 21678 | -7/Garrison | Triggered checkpoint 22182 | -7/Garrison | Expanded RIF knowledge: Robot Detection 22278 | -7/Garrison | Triggered checkpoint 22301 | -7/Garrison | Garrison Relay disabled 22456 | -7/Garrison | Triggered checkpoint 22482 | -7/Garrison | Triggered checkpoint 22501 | -7/Garrison | Triggered checkpoint 22509 | -7/Garrison | Core integrity fell below 50% 22702 | -7/Garrison | Discovered new exit (range 14) 22782 | -7/Garrison | Garrison Relay disabled 22937 | -7/Garrison | Garrison Relay disabled 22954 | -7/Garrison | Triggered checkpoint 22971 | -7/Garrison | Discovered new exit (range 30) 22971 | -7/Garrison | Discovered new exit (range 18) 22971 | -7/Garrison | Discovered new exit (range 76) 23508 | -7/Garrison | Triggered checkpoint 23574 | -7/Garrison | Garrison Relay disabled 23658 | -7/Garrison | Entered Factory 23658 | -6/Factory | Accompanied by 4 allies 23658 | -6/Factory | Evolved 2 slots: Utility x1, Weapon x1 24184 | -6/Factory | Fabricated Cargo Storage Unit (x1) 24190 | -6/Factory | Build established: Bothacker-Skirmisher 25043 | -6/Factory | Identified exit to Garrison 25383 | -6/Factory | Discovered new exit (range 9) 25536 | -6/Factory | Garrison activated, responded to threat 25617 | -6/Factory | Build established: Bothacker-Mutant 26493 | -6/Factory | Entered Garrison 26493 | -6/Garrison | Accompanied by 3 allies 26639 | -6/Garrison | Triggered checkpoint 26729 | -6/Garrison | Garrison Relay disabled 26878 | -6/Garrison | Found embedded Infiltrators 26928 | -6/Garrison | Build established: Bothacker-Skirmisher 27279 | -6/Garrison | Triggered checkpoint 27394 | -6/Garrison | Discovered new exit (range 10) 27576 | -6/Garrison | Triggered checkpoint 27677 | -6/Garrison | Garrison Relay disabled 27750 | -6/Garrison | Expanded RIF knowledge: Alert ID Control 27778 | -6/Garrison | Crushed by falling debris 27874 | -6/Garrison | Triggered checkpoint 27978 | -6/Garrison | Triggered checkpoint 28076 | -6/Garrison | Build established: Botlord-Tank 28133 | -6/Garrison | Discovered new exit (range 10) 28257 | -6/Garrison | Garrison Relay disabled 28462 | -6/Garrison | Spotted Striker 28463 | -6/Garrison | Spotted Executioner 28508 | -6/Garrison | Lost 5 allies 28541 | -6/Garrison | Destroyed Striker 28551 | -6/Garrison | Destroyed Executioner 28571 | -6/Garrison | Lost 8 parts (1p3n3u1w) 28658 | -6/Garrison | Found Corrupted Prototype Processor 28721 | -6/Garrison | System corruption reached 10% 28732 | -6/Garrison | Found Corrupted Prototype Processor 29008 | -6/Garrison | Garrison Relay disabled 29037 | -6/Garrison | Build established: Botlord-Skirmisher 29129 | -6/Garrison | Discovered new exit (range 10) 29165 | -6/Garrison | Triggered checkpoint 29188 | -6/Garrison | Discovered new exit (range 5) 30136 | -6/Garrison | Identified Exp. Targeting Computer 30138 | -6/Garrison | Identified Exp. Core Analyzer 30870 | -6/Garrison | Entered Factory 30870 | -6/Factory | Accompanied by 3 allies 31159 | -6/Factory | Discovered new exit (range 16) 31201 | -6/Factory | Build established: Botlord-Mutant 31220 | -6/Factory | First assault squad dispatched 31695 | -6/Factory | Core integrity fell below 50% 31756 | -6/Factory | Lost 5 parts (1n2u2w) 32011 | -6/Factory | Core integrity fell below 20% 32018 | -6/Factory | Destroyed by L-41 Fighter with Axe Last Messages --------------- 31964_ L-41 Fighter unfolds itself. 31970_ Fighter 5b destroyed. 31977_ System corrupted: IFF burst signal emitted. 31981_ Remote Datajack destroyed. 31982_ M-28 Smith repairs L-41 Fighter. 31983_ Med. Reactive Plating destroyed. 31986_ L-41 Fighter Carbon-fiber Leg severed. 31986_ U-05 Engineer builds a Wall. 31988_ L-41 Fighter Carbon-fiber Leg severed. 31990_ Neutrino Core destroyed. 31990_ Remote Shield destroyed. 32001_ System corrupted: Matter fused (-4). 32003_ Acquired 10 matter. 32003_ Antimatter Cannon destroyed. 32003_ M-28 Smith fits Backup Propulsion III on L-41 Fighter. 32006_ Enh. Biometal Leg severed. 32009_ Relay Coupler [Brawler] destroyed. 32011_ Critical hit (Burn: +37). Map ----- +----------------------------------------------------+ | ???????### ###?????#?????# ????????? | | ?#?????# #?????# ????# ???????????? | | ? ?????# #?#####+##### ??????????????? | | ? ?????# ### ! """ #^^^#?????????????????? | | ? ?????# = + "T" # #?????????????????? | | ? ?????# ### " " # #?????????????????? | | ? ?????# #?# ##????????????????? | | ? ?????# #?# % # ????????????????? | | # ####+## ##?# """ % % ????????????????? | | # # # #??# """ # ##???????????????? | | # # "" # #??# """ # #???????????????? | | # # "" + ##?########### ##??????????????? | | # + """ # T#?????? ??? !%* #??????????????? | | # # """ # % #?????? ??? #!*% ???????????????? | | # # """ # *##????? ?? #[% ????????????????? | | #*+ # #?????"" """ #[* ##????????????????? | | #[# # #????""" """ /[ #?????????????????? | | #[# # #????""" """ #%! #?????????????????? | | # # !# #???? #!% #?????????????????? | | #[####### #????? # #?????????????????? | | # ####### ##??########## #######???????????? | | =!%"% % [% ##??# ! + #??????? | | #+######## ###??# "! g# = #######???????????? | | ## # ##???# mg# # #???????????? | | *## # ##???# # # """ #???????????? | | # # =##??## " @ # # """ #???????????? | | " ## ###?## =l # % # """ #???????????? | | " [ * #?## # # "" #???????????? | | " ""# #?## g# # "" #???????????? | | " ""# !#?## ==# # #???????????? | | " ""# < #??########## ##+####???????????? | | " T## #??## # #??????????????? | | " ""## #???### ##### #??????????????? | | " ""## #?????###???# ! #??????????????? | | " ""##########???????????##+###+#??????????????? | | #???????????????????? ?????????????????? | | ####+##?????????????????? """ """ ???????????????? | | ?### #?????????????????# """ """ ?????????????? | | ???# #?????????????????# """ """ #????????????? | | ???# #?????????????????# #????????????? | | ???# #?????????????????##############????????????? | | ???# #???????????????????????????????????????????? | | ?### #???????????????????????????????????????????? | | ##"#+###?????????????????????????????????????????? | | # #?????????????????????????????????????????? | | # #?????????????????????????????????????????? | | # #?????????????????????????????????????????? | | # #?????????????????????????????????????????? | | #* ! #?????????????????????????????????????????? | | # #?????????????????????????????????????????? | +----------------------------------------------------+ Best States ------------- Heat Dissipation 65 Energy Generation 19 Energy Capacity 1100 Matter Stores 300 Matter Capacity 300 Sight Range 16 Terrain Scan Range 16 Terrain Scan Density 10 Jamming Range 14 Cloak Strength 5 Armor Coverage 600 Resistance: KI 30 Utility Shielding 66 Evasion (%) 40 Targeting Accuracy 8 Recoil Reduction 3 Particle Charging 15 Offensive Hacking 32 Relay Coupler Types 5 Relay Coupler Value 142 Trap Extractor Capacity 6 Item Schematics ----------------- Huge Storage Unit | -10/Materials | Hacked Cargo Storage Unit | -10/Materials | Hacked Arm. Wheel | -8/Materials | Scanalyzed Robot Schematics ------------------ None Fabricated ------------ B-36 Bruiser | x3 | -7/Factory | Preloaded Cargo Storage Unit | x1 | -6/Factory Alien Tech Used ----------------- None Achievements -------------- Beloved Pwned Challenges ------------ None Game ------ Seed ThermicBladeSlayer Manual? 0 Play Time 06:47:57 Cumulative 143.8 hours Start 2024.07.12 @ 23:43:54 End 2024.07.23 @ 11:32:05 Sessions 17 Manual Loads 0 Difficulty Rogue Special Mode None Game No. 30 Rogue 24 Adventurer 6 Explorer 0 Win Type - Total 2 Types 2/0/0/0/0/0/0/0/0 Lore% 41 Gallery% 60 Achievement% 48 Wizard Run 0 Options --------- Layout 1 ASCII 0 Keyboard 1 Movement Vi Keybinds 0 Fullscreen 2 Font 32/SmallcapsGlow Map View 50x40 Zoom Use 0% Tactical HUD 1 Map Filters NONE Filters NONE Steam 1 RUN: e06e501a-7a24-46fb-baa8-6c6b77eca558